bitfinex/quotes_ETHUSD_20250517
["timestamp","ask_amount","ask_price","bid_price","bid_amount"]
[1747454177487,0.8163,2495.1,2495.0,24.933]
[1747454178060,0.00863418,2495.5,2495.0,28.94101603]
[1747454178061,0.82493418,2495.5,2495.0,28.94101603]
[1747454178249,4.83217716,2495.5,2495.0,17.309]
[1747454178589,4.83215388,2495.5,2495.1,7.625]
[1747454178783,4.00750651,2495.4,2495.1,7.625]
[1747454179970,4.83222958,2495.5,2495.1,7.625]
[1747454180284,0.82493418,2495.5,2495.2,0.55]
[1747454180490,0.82493418,2495.5,2495.3,1.21827423]
[1747454181271,0.00863418,2495.5,2495.3,1.21827423]
[1747454182887,0.00863418,2495.5,2495.3,5.22575193]
[1747454183694,0.00863418,2495.5,2495.3,1.21827423]
[1747454183865,0.00863418,2495.5,2495.4,1.37758833]
[1747454185599,0.00863418,2495.5,2495.4,1.92758833]
[1747454185896,0.00863418,2495.5,2495.4,1.37758833]
[1747454186102,0.00863418,2495.5,2495.3,0.55]
[1747454186481,0.00863418,2495.5,2495.2,8.0]
[1747454188799,0.00863418,2495.5,2495.3,17.304]
[1747454189101,0.00863418,2495.5,2495.4,7.624]
[1747454189807,5.28474809,2495.5,2495.4,7.624]
[1747454189966,5.28474809,2495.5,2495.3,17.304]
[1747454190167,5.28474809,2495.5,2495.4,7.624]
[1747454192290,4.80334716,2495.5,2495.3,17.304]
[1747454192494,4.80334716,2495.5,2495.4,7.62]
[1747454194113,0.79613418,2495.5,2495.4,7.62]
[1747454194411,0.00863418,2495.5,2495.4,7.62]
[1747454194590,0.00863418,2495.5,2495.4,11.62737356]
[1747454194914,0.00863418,2495.5,2495.4,7.62]
[1747454195074,0.00863418,2495.5,2495.4,8.21006769]
[1747454195279,0.00863418,2495.5,2495.4,8.17]
[1747454195479,0.00863418,2495.5,2495.4,12.17737356]
[1747454196201,0.00863418,2495.5,2495.4,20.60147356]
[1747454199728,0.00863418,2495.5,2495.4,28.60147356]
[1747454205741,0.00863418,2495.5,2495.4,38.88147356]
[1747454206247,0.8179,2497.3,2496.6,0.55]
[1747454206418,4.00338881,2497.9,2496.7,24.919]
[1747454206419,4.00489331,2497.0,2496.7,24.919]
[1747454206810,0.766,2496.8,2496.7,17.3]
[1747454207010,0.766,2496.8,2496.7,24.919]
[1747454208543,4.77112656,2496.8,2496.7,24.918]
[1747454208910,5.64872202,2496.8,2496.7,24.918]
[1747454209548,5.64872202,2496.8,2496.7,17.3]
[1747454210050,5.64872202,2496.8,2496.7,24.918]
[1747454210948,4.77112656,2496.8,2496.7,24.918]
[1747454211644,0.766,2496.8,2496.7,24.918]
[1747454212218,4.81440578,2497.0,2496.7,24.918]
[1747454213463,0.8096,2497.0,2496.7,24.918]
[1747454213830,4.81441597,2497.0,2496.7,24.918]
[1747454214040,0.8096,2497.0,2496.7,24.918]
[1747454214750,4.81441663,2497.0,2496.7,24.918]
[1747454215348,4.81441663,2497.0,2496.8,7.617]
[1747454216129,4.81441663,2497.0,2496.7,17.3]
[1747454216469,4.81441663,2497.0,2496.8,7.617]
[1747454216759,0.8096,2497.0,2496.8,7.617]
[1747454216965,4.00496615,2496.9,2496.8,7.617]
[1747454217163,4.81448871,2497.0,2496.8,7.617]
[1747454220885,4.00496615,2496.9,2496.8,7.617]
[1747454221258,4.00496615,2496.9,2496.7,17.3]
[1747454221456,4.00496615,2496.9,2496.8,7.614]
[1747454221660,4.81445702,2497.0,2496.8,7.614]
[1747454221864,4.00496615,2496.9,2496.8,7.614]
[1747454222063,4.81444644,2497.0,2496.8,7.614]
[1747454222259,4.00484644,2497.0,2496.8,7.614]
[1747454222464,4.00473572,2497.1,2496.8,7.614]
[1747454223913,4.00464538,2497.1,2496.8,7.614]
[1747454224053,4.00480633,2497.0,2496.8,7.614]
[1747454226578,4.00473272,2497.1,2496.8,10.50594381]
[1747454226757,4.00480684,2497.0,2496.8,10.50594381]
[1747454227669,4.00494682,2497.0,2496.8,10.50594381]
[1747454227875,4.00494682,2497.0,2496.9,7.614]
[1747454230895,4.00494682,2497.0,2496.9,24.909]
[1747454232800,6.8228771,2497.0,2496.9,17.295]
[1747454232986,6.8228771,2497.0,2496.9,24.909]
[1747454233379,6.8228771,2497.0,2496.9,17.295]
[1747454233380,14.8228771,2497.0,2496.9,17.295]
[1747454233786,15.3228771,2497.0,2496.9,17.295]
[1747454236393,4.00642056,2496.0,2495.8,0.29285076]
[1747454236675,4.00624974,2496.1,2496.0,17.296]
[1747454236875,4.00662723,2495.9,2495.8,17.296]
[1747454237201,4.00662723,2495.9,2495.8,24.911]
[1747454239775,4.00649354,2496.0,2495.8,24.911]
[1747454240112,4.00657077,2495.9,2495.8,24.911]
[1747454240914,0.7759,2496.2,2495.8,24.911]
[1747454240915,4.00645439,2496.0,2495.8,24.911]
[1747454241428,4.00657077,2495.9,2495.8,24.911]
[1747454243717,4.82557077,2495.9,2495.8,24.911]
[1747454243920,6.83962047,2495.9,2495.8,24.912]
[1747454245492,6.83962047,2495.9,2495.8,17.296]
[1747454245698,6.83962047,2495.9,2495.8,24.912]
[1747454246312,5.95642183,2495.9,2495.8,24.912]
[1747454247721,13.57042183,2495.9,2495.8,24.912]
[1747454249335,13.57042183,2495.9,2495.8,17.296]
[1747454249502,13.57042183,2495.9,2495.8,24.913]
[1747454250936,13.57142183,2495.9,2495.8,24.913]
[1747454251610,15.32920557,2495.9,2495.8,24.913]
[1747454252728,15.32920557,2495.9,2495.8,24.91]
[1747454257337,7.71420557,2495.9,2495.8,24.91]
[1747454257541,15.32820557,2495.9,2495.8,24.91]
[1747454261248,13.57042183,2495.9,2495.8,24.91]
[1747454261628,12.75142183,2495.9,2495.8,24.91]
[1747454261842,5.13742183,2495.9,2495.8,24.91]
[1747454262143,4.00657077,2495.9,2495.8,24.91]
[1747454262550,4.00649083,2496.0,2495.8,24.91]
[1747454262851,4.00657077,2495.9,2495.8,24.91]
[1747454263151,4.00647109,2496.0,2495.8,25.6897]
[1747454264652,4.00657077,2495.9,2495.8,24.91]
[1747454266248,4.00657077,2495.9,2495.8,17.296]
[1747454266449,4.00657077,2495.9,2495.8,24.911]
[1747454266650,14.45501112,2495.9,2495.8,24.911]
[1747454268360,4.00657077,2495.9,2495.8,24.911]
[1747454269728,5.13742183,2495.9,2495.8,24.911]
[1747454271143,5.63742183,2495.9,2495.8,24.911]
[1747454271342,6.42762183,2495.9,2495.8,24.911]
[1747454272253,0.7902,2495.8,2495.6,7.615]
[1747454272544,0.7902,2495.8,2495.1,17.303]
[1747454272545,4.00763543,2495.3,2495.1,17.303]
[1747454272750,4.00763543,2495.3,2495.2,7.615]
[1747454273146,1.13085106,2495.7,2495.2,7.615]
[1747454273326,4.00728434,2495.5,2495.2,7.615]
[1747454273627,4.00728434,2495.5,2495.2,10.50758791]
[1747454275978,4.00708617,2495.6,2495.3,0.7782]
[1747454276559,4.00723304,2495.5,2495.3,0.7782]
[1747454277948,4.00723304,2495.5,2495.2,10.50758791]
[1747454278148,4.007378,2495.4,2495.2,10.50758791]
[1747454278368,4.007378,2495.4,2495.3,7.615]
[1747454282466,5.94107809,2495.7,2495.3,7.615]
[1747454282643,4.00737356,2495.4,2495.3,7.615]
[1747454284190,4.00769477,2495.2,2495.1,17.303]
[1747454284486,4.00769477,2495.2,2495.1,24.914]
[1747454285059,4.00742527,2495.4,2495.1,24.914]
[1747454285591,4.0075225,2495.4,2495.1,24.914]
[1747454286659,4.00754139,2495.3,2495.1,24.914]
[1747454286970,4.00746151,2495.4,2495.1,24.914]
[1747454288592,4.00725186,2495.5,2495.2,0.7996]
[1747454291105,0.7599,2495.9,2495.2,0.7996]
[1747454291310,4.00728933,2495.5,2495.2,0.7996]
[1747454291812,4.00728933,2495.5,2495.3,7.612]
[1747454291813,4.00741749,2495.4,2495.3,7.612]
[1747454292407,4.0071385,2495.6,2495.4,0.8116]
[1747454292575,4.50691207,2495.7,2495.4,0.8116]
[1747454293207,4.00707462,2495.6,2495.4,0.8116]
[1747454293409,4.50694716,2495.7,2495.4,0.8116]
[1747454294110,4.50691781,2495.7,2495.5,0.84236]
[1747454294312,4.50691781,2495.7,2495.4,0.8116]
[1747454294529,4.0068221,2495.8,2495.4,0.8116]
[1747454294834,4.00697238,2495.7,2495.4,0.8116]
[1747454295796,4.00665712,2495.9,2495.4,4.81895507]
[1747454296444,4.00572623,2496.5,2495.9,4.81807296]
[1747454296649,1.66267922,2497.0,2496.2,0.8116]
[1747454296808,4.00512656,2496.8,2496.2,4.81761295]
[1747454297210,0.5,2496.8,2496.2,4.81762853]
[1747454297403,4.0046915,2497.1,2496.4,0.8116]
[1747454297620,0.7855,2497.4,2496.8,0.8116]
[1747454297840,2.138437,2497.4,2496.9,17.305]
[1747454298142,7.609,2497.6,2496.9,17.305]
[1747454298143,1.13085106,2497.6,2497.0,7.61]
[1747454298329,1.13085106,2497.6,2496.9,17.305]
[1747454298533,4.00464538,2497.1,2497.0,7.61]
[1747454298740,4.00464538,2497.1,2496.9,17.305]
[1747454298741,4.00480576,2497.0,2496.9,17.305]
[1747454299053,4.91883598,2497.0,2496.9,24.915]
[1747454299615,4.00480576,2497.0,2496.9,24.915]
[1747454301252,4.00480576,2497.0,2496.9,25.6761]
[1747454301959,4.00480576,2497.0,2496.9,24.915]
[1747454305124,4.00480576,2497.0,2496.9,24.914]
[1747454308582,4.00464613,2497.1,2496.9,24.914]
[1747454309158,4.00480576,2497.0,2496.9,24.914]
[1747454309982,4.00480576,2497.0,2496.9,17.305]
[1747454310182,4.00480576,2497.0,2496.9,24.913]
[1747454310978,4.00480576,2497.0,2496.9,25.6683]
[1747454311184,4.00480576,2497.0,2496.9,24.913]
[1747454312490,5.61075095,2497.0,2496.9,24.913]
[1747454312986,6.11075095,2497.0,2496.9,24.913]
[1747454313187,6.11075095,2497.0,2496.9,24.909]
[1747454313393,6.11075095,2497.0,2496.9,17.305]
[1747454313882,6.11075095,2497.0,2496.9,24.909]
[1747454318977,6.11075095,2497.0,2496.9,17.305]
[1747454319276,6.11075095,2497.0,2496.9,24.909]
[1747454320344,14.11075095,2497.0,2496.9,17.305]
[1747454320543,4.00579847,2496.4,2496.2,17.297]
[1747454320772,5.13677983,2496.3,2496.2,17.297]
[1747454320983,5.13677983,2496.3,2496.2,24.901]
[1747454321189,4.00592877,2496.3,2496.2,24.901]
[1747454324791,4.00592877,2496.3,2496.2,17.297]
[1747454325293,4.00592877,2496.3,2496.2,24.902]
[1747454328910,4.00592877,2496.3,2496.2,17.297]
[1747454329196,5.63339893,2496.3,2496.2,24.902]
[1747454331277,5.63339893,2496.3,2496.2,17.297]
[1747454331474,5.63339893,2496.3,2496.2,24.902]
[1747454335306,13.23539893,2496.3,2496.2,24.902]
[1747454338685,12.40909893,2496.3,2496.2,24.902]
[1747454339822,12.40909893,2496.3,2496.2,17.297]
[1747454340117,12.40909893,2496.3,2496.2,24.903]
[1747454340415,13.18989893,2496.3,2496.2,24.903]
[1747454340616,4.00608925,2496.2,2495.4,17.301]
[1747454340818,4.00721298,2495.5,2495.4,18.0905]
[1747454341118,4.00721298,2495.5,2495.4,17.301]
[1747454341416,4.78801298,2495.5,2495.4,17.301]
[1747454343086,4.00721298,2495.5,2495.4,17.301]
[1747454344089,4.00697532,2495.7,2495.4,19.87065]
[1747454344397,4.00691956,2495.7,2495.5,0.7895]
[1747454344585,4.00676685,2495.8,2495.5,0.7895]
[1747454344790,4.00676685,2495.8,2495.6,0.86953664]
[1747454345510,8.73185106,2496.1,2495.6,0.86953664]
[1747454345712,4.00657323,2495.9,2495.6,0.86953664]
[1747454346259,4.00649804,2496.0,2495.6,0.86953664]
[1747454346437,4.00649804,2496.0,2495.7,0.7895]
[1747454346639,4.00649804,2496.0,2495.8,7.602]
[1747454347777,4.00657077,2495.9,2495.8,7.602]
[1747454349876,4.50649072,2496.0,2495.8,7.602]
[1747454350174,0.5,2496.0,2495.8,7.602]
[1747454351144,4.50645201,2496.0,2495.8,7.602]
[1747454351443,0.5,2496.0,2495.8,8.58476605]
[1747454351766,4.00657077,2495.9,2495.8,8.58476605]
[1747454352139,4.00648521,2496.0,2495.8,8.58476605]
[1747454352545,4.00648521,2496.0,2495.9,7.602]
[1747454352746,4.00611545,2496.2,2495.9,7.602]
[1747454354081,4.00608925,2496.2,2495.9,7.602]
[1747454354769,4.00598972,2496.3,2496.0,0.7895]
[1747454354977,4.00599988,2496.3,2496.0,0.7895]
[1747454355180,4.50599988,2496.3,2496.0,0.7895]
[1747454355650,4.5060018,2496.3,2496.0,0.7895]
[1747454355986,4.00609547,2496.2,2496.0,0.7895]
[1747454357187,4.00596909,2496.3,2496.0,0.7895]
[1747454357397,4.00571307,2496.5,2496.0,6.03572939]
[1747454357554,4.00560785,2496.5,2496.0,2.02932235]
[1747454357887,4.00560785,2496.5,2496.0,6.03572618]
[1747454358084,4.00560785,2496.5,2496.0,5.24622618]
[1747454358286,4.00560785,2496.5,2496.1,0.7806]
[1747454358487,4.00578186,2496.4,2496.1,0.7806]
[1747454359284,4.00578186,2496.4,2496.2,17.302]
[1747454359486,4.00592877,2496.3,2496.2,17.302]
[1747454359665,4.00585616,2496.4,2496.2,24.903]
[1747454359857,4.00592877,2496.3,2496.2,24.903]
[1747454360258,4.00592877,2496.3,2496.2,17.302]
[1747454360489,4.00592877,2496.3,2496.2,24.903]
[1747454360969,5.13677983,2496.3,2496.2,24.903]
[1747454361372,6.177315,2496.3,2496.2,24.903]
[1747454362488,4.00592877,2496.3,2496.2,24.903]
[1747454365259,0.5,2496.4,2496.2,24.903]
[1747454366160,1.91625106,2496.8,2496.3,0.8065]
[1747454366360,4.0057683,2496.4,2496.3,0.8065]
[1747454367294,4.00567462,2496.5,2496.3,0.8065]
[1747454367494,8.0,2496.7,2496.3,0.8065]
[1747454367495,4.00529794,2496.7,2496.3,0.8065]
[1747454367671,4.00553224,2496.6,2496.3,0.8065]
[1747454368299,4.00560843,2496.5,2496.3,0.8065]
[1747454372476,4.00592877,2496.3,2496.2,24.903]
[1747454373183,4.00592877,2496.3,2496.2,17.302]
[1747454373371,4.00608925,2496.2,2496.1,7.6]
[1747454373978,4.00608925,2496.2,2495.6,18.0542]
[1747454373979,4.00689185,2495.7,2495.6,18.0542]
[1747454374181,4.00689185,2495.7,2495.6,24.894]
[1747454374572,4.00643132,2496.0,2495.7,0.7552]
[1747454374985,4.00663928,2495.9,2495.7,0.7552]
[1747454375904,4.00663928,2495.9,2495.8,7.595]
[1747454376472,4.00613745,2496.2,2495.8,10.15992]
[1747454376672,4.00643966,2496.0,2495.8,10.15992]
[1747454378103,4.00629183,2496.1,2495.8,10.15992]
[1747454378273,4.00595506,2496.3,2495.8,10.15992]
[1747454378477,4.00595506,2496.3,2495.9,0.7915]
[1747454378681,4.00595506,2496.3,2496.0,0.87426664]
[1747454379802,4.00583735,2496.4,2496.0,0.87426664]
[1747454380208,4.00594711,2496.3,2496.0,0.87426664]
[1747454382015,7.594,2496.6,2496.0,0.87426664]
[1747454382309,4.00595805,2496.3,2495.9,0.7915]
[1747454382716,4.00608925,2496.2,2495.9,0.7915]
[1747454382916,4.00608925,2496.2,2496.0,7.595]
[1747454383119,4.00602673,2496.3,2496.0,7.595]
[1747454384497,4.00621209,2496.2,2496.1,7.595]
[1747454385924,4.00583972,2496.4,2496.1,7.595]
[1747454386129,4.00595884,2496.3,2496.1,7.595]
[1747454388530,4.00608925,2496.2,2496.1,7.595]
[1747454390799,4.00608925,2496.2,2495.9,0.7915]
[1747454391235,4.00608925,2496.2,2496.0,7.595]
[1747454392031,9.50495106,2496.7,2496.0,7.595]
[1747454392242,4.00568541,2496.5,2496.0,8.43365]
[1747454392439,4.00550311,2496.6,2496.0,8.43365]
[1747454393030,4.00550311,2496.6,2496.1,7.595]
[1747454393216,4.50578692,2496.4,2496.1,7.595]
[1747454394107,4.00593998,2496.3,2496.1,7.595]
[1747454394641,4.00584538,2496.4,2496.1,7.595]
[1747454395940,4.00552962,2496.6,2496.1,8.91817119]
[1747454396108,4.00496615,2496.9,2496.2,4.76011866]
[1747454396439,4.0053094,2496.7,2496.2,4.76011866]
[1747454396735,4.00547891,2496.6,2496.2,0.7541]
[1747454396914,4.00547891,2496.6,2496.2,2.03146545]
[1747454397240,4.00537454,2496.7,2496.2,6.03747916]
[1747454397441,4.00520603,2496.8,2496.2,6.03747916]
[1747454397630,4.00520603,2496.8,2496.2,6.07753489]
[1747454398241,0.5,2496.7,2496.3,17.299]
[1747454398409,0.5,2496.7,2496.3,19.46082119]
[1747454399823,4.50531082,2496.7,2496.3,19.46082119]
[1747454400040,0.5,2496.7,2496.4,4.75977325]
[1747454400227,4.005037,2496.9,2496.4,4.75977325]
[1747454400434,4.005037,2496.9,2496.4,0.7541]
[1747454400621,4.005037,2496.9,2496.5,1.27736545]
[1747454400942,4.005037,2496.9,2496.6,7.594]
[1747454401125,4.00515942,2496.8,2496.5,1.27736545]
[1747454401443,4.0050477,2496.9,2496.7,7.594]
[1747454402363,4.0050477,2496.9,2496.8,0.7892]
[1747454402644,4.00482597,2497.0,2496.8,8.3832]
[1747454402940,4.00464552,2497.1,2496.8,8.3832]
[1747454403251,4.00480576,2497.0,2496.8,8.3832]
[1747454403440,4.00496615,2496.9,2496.8,8.3832]
[1747454403741,4.0057683,2496.4,2496.3,17.299]
[1747454403947,4.0057683,2496.4,2496.3,24.893]
[1747454404106,4.00560307,2496.6,2496.3,24.893]
[1747454404312,4.00563815,2496.5,2496.3,24.893]
[1747454405043,4.00563815,2496.5,2496.4,7.589]
[1747454405240,4.00560307,2496.6,2496.3,17.299]
[1747454405444,4.8338683,2496.4,2496.3,17.299]
[1747454405646,4.8338683,2496.4,2496.3,24.888]
[1747454406023,5.96471936,2496.4,2496.3,24.888]
[1747454406554,4.8338683,2496.4,2496.3,24.888]
[1747454406938,4.0057683,2496.4,2496.3,24.888]
[1747454408029,4.0057683,2496.4,2496.3,17.299]
[1747454408234,7.72065473,2496.4,2496.3,24.888]
[1747454409460,15.72065473,2496.4,2496.3,24.888]
[1747454409753,15.72065473,2496.4,2496.3,24.889]
[1747454410053,15.72065473,2496.4,2496.3,17.299]
[1747454410958,4.00713836,2495.6,2495.5,4.1684]
[1747454411125,4.00697279,2495.7,2495.5,11.7584]
[1747454411331,4.00705241,2495.6,2495.5,11.7584]
[1747454412742,4.00705241,2495.6,2495.5,4.1684]
[1747454412947,4.00817648,2495.0,2494.8,17.3]
[1747454413163,4.00817648,2495.0,2494.9,7.59]
[1747454414979,4.00817648,2495.0,2494.8,17.3]
[1747454415183,4.00817648,2495.0,2494.9,7.591]
[1747454415676,4.00817648,2495.0,2494.8,17.3]
[1747454415883,4.00817648,2495.0,2494.9,7.591]
[1747454417088,4.0079158,2495.1,2494.9,7.591]
[1747454417291,4.0073318,2495.5,2495.0,0.8092]
[1747454417452,0.827,2495.8,2495.0,0.84927573]
[1747454417651,4.00729731,2495.5,2495.0,4.81711599]
[1747454418486,4.00729731,2495.5,2494.8,17.3]
[1747454418487,4.00812324,2495.0,2494.8,17.3]
[1747454418783,4.00812324,2495.0,2494.9,7.592]
[1747454421994,4.00812324,2495.0,2494.8,17.3]
[1747454422163,4.00810407,2495.0,2494.9,7.592]
[1747454423591,4.00792037,2495.1,2494.9,7.592]
[1747454426610,4.00738333,2495.4,2494.9,7.592]
[1747454426812,4.00739781,2495.4,2495.0,0.7666]
[1747454427173,4.00698293,2495.7,2495.1,4.00785131]
[1747454427370,4.00664754,2495.9,2495.2,0.80667384]
[1747454427595,4.00657475,2495.9,2495.4,0.7666]
[1747454427795,4.0067313,2495.8,2495.5,7.593]
[1747454428100,4.00705241,2495.6,2495.5,7.593]
[1747454428282,4.00721298,2495.5,2495.4,0.7666]
[1747454428484,4.00721298,2495.5,2495.4,7.593]
[1747454428813,4.00712345,2495.6,2495.4,7.593]
[1747454429019,4.00721298,2495.5,2495.4,7.593]
[1747454429389,4.00713684,2495.6,2495.4,7.593]
[1747454430016,4.00721298,2495.5,2495.4,7.593]
[1747454430191,4.00747423,2495.4,2495.2,0.7666]
[1747454430389,4.00747423,2495.4,2494.9,2.56528]
[1747454430390,4.00781533,2495.2,2494.9,0.7666]
[1747454430722,4.00785539,2495.1,2495.0,7.593]
[1747454430890,4.00812154,2495.0,2494.8,17.3]
[1747454431222,4.00793782,2495.1,2494.9,7.593]
[1747454431927,4.00801603,2495.0,2494.9,7.593]
[1747454432286,4.00792913,2495.1,2494.9,7.593]
[1747454432513,4.00801603,2495.0,2494.9,7.593]
[1747454433998,4.00817668,2494.9,2494.8,17.3]
[1747454434199,4.00817668,2494.9,2494.8,24.889]
[1747454434621,4.00817668,2494.9,2494.8,17.3]
[1747454434795,4.00817668,2494.9,2494.8,24.889]
[1747454436535,4.44791907,2494.9,2494.8,24.889]
[1747454436835,4.00802211,2495.0,2494.8,24.889]
[1747454437945,8.0,2495.6,2494.8,24.889]
[1747454437946,12.36717133,2495.3,2494.8,24.889]
[1747454438234,4.00802834,2495.0,2494.8,24.889]
[1747454438434,4.00817668,2494.9,2494.8,17.3]
[1747454438626,4.00817668,2494.9,2494.8,24.889]
[1747454438627,4.80979718,2494.9,2494.8,24.889]
[1747454439127,4.00817668,2494.9,2494.8,24.889]
[1747454441330,4.00806894,2495.0,2494.8,24.889]
[1747454441723,4.00790459,2495.1,2494.8,24.889]
[1747454443115,4.00804539,2495.0,2494.9,7.59]
[1747454443512,5.13822054,2495.5,2494.9,8.3842]
[1747454443513,0.7706,2495.5,2494.9,8.3842]
[1747454443842,12.36653901,2495.7,2495.0,6.57634654]
[1747454444044,0.7706,2495.7,2495.0,6.57638073]
[1747454444249,4.00670759,2495.9,2495.4,0.7942]
[1747454444549,1.13085106,2496.2,2495.5,11.59712728]
[1747454444550,4.00630582,2496.1,2495.5,11.59712728]
[1747454444743,4.00641094,2496.0,2495.5,11.59712728]
[1747454444923,4.00633302,2496.1,2495.5,12.46789392]
[1747454445418,4.00644561,2496.0,2495.5,12.46789392]
[1747454445742,4.00644561,2496.0,2495.5,8.46076664]
[1747454445946,4.00659958,2495.9,2495.5,8.46076664]
[1747454446121,8.71885106,2496.0,2495.6,7.589]
[1747454446327,4.00689185,2495.7,2495.6,7.589]
[1747454446642,4.00744814,2495.4,2495.2,0.7704]
[1747454446850,4.00744814,2495.4,2495.3,7.589]
[1747454448610,4.00721172,2495.6,2495.3,7.589]
[1747454448816,4.00697509,2495.7,2495.4,0.7704]
[1747454450149,4.00705376,2495.6,2495.4,0.7704]
[1747454450844,4.00705376,2495.6,2495.3,7.589]
[1747454451344,4.00691636,2495.7,2495.4,7.589]
[1747454451753,7.587,2496.2,2495.5,0.8055]
[1747454452058,4.00656612,2496.0,2495.5,0.8055]
[1747454452235,4.0065836,2495.9,2495.5,0.8055]
[1747454455044,7.587,2496.2,2495.5,0.8055]
[1747454455250,4.00669475,2495.9,2495.5,0.8055]
[1747454455559,4.00676498,2495.8,2495.5,0.8055]
[1747454456458,11.5932349,2496.2,2495.5,0.8055]
[1747454456662,4.00680921,2495.8,2495.5,0.8055]
[1747454456960,4.00721298,2495.5,2495.4,7.589]
[1747454458439,4.00721298,2495.5,2495.4,7.588]
[1747454459449,4.00721298,2495.5,2494.9,8.8098]
[1747454459654,0.758,2495.6,2495.0,7.588]
[1747454459857,4.00776781,2495.2,2495.0,7.588]
[1747454460235,4.00783292,2495.2,2495.0,7.588]
[1747454460434,4.00785539,2495.1,2495.0,7.588]
[1747454460665,4.00817668,2494.9,2494.8,17.3]
[1747454460846,4.00817668,2494.9,2494.8,24.888]
[1747454461766,4.82367668,2494.9,2494.8,17.3]
[1747454461958,4.82367668,2494.9,2494.8,24.888]
[1747454462460,13.95452774,2494.9,2494.8,24.888]
[1747454462667,15.83094168,2494.9,2494.8,24.888]
[1747454462867,4.00817668,2494.9,2494.8,24.888]
[1747454464051,9.13085106,2495.5,2494.8,24.888]
[1747454464387,0.8155,2495.6,2494.9,0.84448415]
[1747454464547,4.00721991,2495.5,2495.0,4.00797215]
[1747454464882,4.00721991,2495.5,2494.9,4.81249729]
[1747454465096,4.00764796,2495.3,2494.9,0.8044]
[1747454465244,4.00764796,2495.3,2495.0,7.586]
[1747454466350,4.00785539,2495.1,2495.0,7.586]
[1747454466873,0.8155,2495.6,2495.0,7.586]
[1747454467077,4.00737707,2495.4,2495.1,1.563]
[1747454468049,4.00759047,2495.3,2495.1,0.8044]
[1747454468246,4.00753416,2495.3,2495.2,7.585]
[1747454469782,4.00817668,2494.9,2494.8,17.3]
[1747454469953,4.00817668,2494.9,2494.8,24.886]
[1747454474088,4.00817668,2494.9,2494.8,17.3]
[1747454474312,5.64995348,2494.9,2494.8,17.3]
[1747454476102,4.0075935,2495.3,2494.8,18.108]
[1747454476403,7.586,2495.8,2494.9,4.04820137]
[1747454476563,4.00729369,2495.5,2495.0,4.00795533]
[1747454476765,4.00729369,2495.5,2495.0,6.62036789]
[1747454477192,0.7584,2496.2,2495.2,0.808]
[1747454477400,4.00652544,2496.0,2495.5,4.00713604]
[1747454477615,4.00631335,2496.1,2495.6,4.81503245]
[1747454477893,4.00631335,2496.1,2495.7,17.308]
[1747454478065,4.00602468,2496.3,2495.8,7.62606559]
[1747454478262,4.88304461,2496.3,2495.8,7.586]
[1747454478463,4.00611542,2496.2,2495.8,7.586]
[1747454479591,4.76404662,2496.5,2495.8,7.586]
[1747454479782,2.17009522,2496.8,2495.9,4.85462031]
[1747454479783,4.00578075,2496.4,2495.9,4.85462031]
[1747454480623,0.7584,2496.8,2495.9,0.84806168]
[1747454480777,4.00528697,2496.7,2496.1,4.00616676]
[1747454481120,4.83953049,2496.8,2496.2,4.00607907]
[1747454481428,4.00490622,2497.0,2496.4,0.55]
[1747454481598,7.585,2497.2,2496.5,7.585]
[1747454481914,4.00528697,2496.7,2496.6,17.304]
[1747454482111,4.00519791,2496.8,2496.6,17.304]
[1747454482274,4.00492458,2497.0,2496.6,17.304]
[1747454482475,4.00489494,2497.0,2496.6,17.304]
[1747454482670,8.3944,2497.4,2496.6,17.304]
[1747454482907,9.63425025,2497.4,2496.6,19.91641256]
[1747454483705,0.8104,2497.6,2496.7,1.41014949]
[1747454484009,4.00457598,2497.2,2496.7,1.3701]
[1747454484882,4.00494571,2497.0,2496.7,0.8201]
[1747454485082,4.00472854,2497.1,2496.7,0.8201]
[1747454485300,0.80093149,2497.1,2496.6,17.304]
[1747454485507,4.00528697,2496.7,2496.6,17.304]
[1747454485815,4.00528697,2496.7,2496.6,24.888]
[1747454486506,4.00528697,2496.7,2496.6,17.304]
[1747454486719,11.58828697,2496.7,2496.6,24.888]
[1747454486908,13.14763048,2496.7,2496.6,24.888]
[1747454488787,16.0911257,2496.7,2496.6,17.304]
[1747454491457,12.0054474,2496.6,2496.5,7.583]
[1747454491733,4.00641025,2496.0,2495.9,17.3]
[1747454491906,11.60041025,2496.0,2495.9,17.3]
[1747454492094,13.45802825,2496.0,2495.9,17.3]
[1747454492534,4.00753416,2495.3,2495.2,17.3]
[1747454492898,4.00753416,2495.3,2495.2,24.883]
[1747454494298,4.00753416,2495.3,2495.2,17.3]
[1747454494602,4.00753416,2495.3,2495.2,24.891]
[1747454494802,5.56852745,2495.3,2495.2,17.3]
[1747454495016,5.56852745,2495.3,2495.2,24.891]
[1747454495435,16.52952267,2495.3,2495.2,24.891]
[1747454495945,4.00898011,2494.4,2494.3,0.7797]
[1747454496104,4.00832805,2494.9,2494.5,17.301]
[1747454496306,4.00748532,2495.4,2494.7,0.7797]
[1747454496535,4.00782865,2495.2,2494.8,7.592]
[1747454497448,4.00754899,2495.3,2494.8,7.592]
[1747454497779,6.00943092,2498.1,2494.9,0.7797]
[1747454497780,8.0,2495.9,2494.9,0.7797]
[1747454497965,4.81861322,2496.0,2494.9,0.7797]
[1747454497966,4.0075074,2495.4,2494.9,0.7797]
[1747454498170,4.0075396,2495.3,2495.0,1.2379919]
[1747454498672,4.00673081,2495.9,2495.2,4.00769477]
[1747454498971,7.605,2496.3,2495.6,4.00697655]
[1747454499135,4.0054474,2496.6,2495.9,4.00653863]
[1747454499332,4.00596078,2496.3,2496.0,7.592]
[1747454499955,4.00615375,2496.2,2496.0,7.592]
[1747454500162,4.00608925,2496.2,2496.0,7.592]